Cogmind - Beta 10.1 @@@ ROGUE MODE // 2020.09.28 @ 12:58:06 Player: Cracklepappy Result: Destroyed by G-47 Trooper with Particle Gun Performance ------------- Evolutions (3) 1500 Regions Visited (13) 2600 Robots Destroyed (184) 920 Value Destroyed (6096) 6096 Prototype IDs (31) 620 Alien Tech Used (0) 0 Bonus (1413) 1413 TOTAL SCORE: 13149 Bonus ------- High Alert Combat Kills 635 Follower Combat Kills 135 Entered Garrisons 400 Used RIF Installer 1000 Aligned with FarCom 300 Friendly Fire -1057 Cogmind --------- Core Integrity 0/700 Matter 195/300 Energy 115/290 System Corruption 32% Temperature Cool (454) Movement Core (1900) Ox37 Location -7/Lower Caves Parts ------- > --- POWER (1) -------- Improved Deuterium Engine > --- PROPULSION (2) --- Heavy Treads > --- UTILITY (8) ------ High-capacity Storage Unit High-capacity Storage Unit High-capacity Storage Unit Experimental Sensor Array > --- WEAPON (2) ------- Shock Rifle Power Maul > --- INVENTORY (28) --- Antimatter Reactor Light Treads Light Treads Advanced Treads Heavy Treads Heavy Treads Large Battery (300) High-capacity Matter Pod (200) Advanced Terrain Scan Processor Advanced Particle Charger Improved Medium Armor Plating Hacking Suite Relay Coupler [NC] (24) Relay Coupler [NC] (27) System Backup Module Long-range Tractor Beam Heart of Steel Flak Gun Advanced EMP Blaster Advanced EMP Blaster Remote Datajack Plasma Cutter Peak State ------------ > --- POWER ------------ Antimatter Reactor > --- PROPULSION ------- Heavy Treads > --- UTILITY ---------- High-capacity Storage Unit High-capacity Storage Unit High-capacity Storage Unit Damper Plating Hardlight Generator Relay Coupler [Hunter] > --- WEAPON ----------- Gauss Rifle Flak Gun > --- INVENTORY -------- Antimatter Reactor Antimatter Reactor Advanced Treads Heavy Treads Heavy Treads Heavy Treads Large Battery High-capacity Matter Pod Experimental Sensor Array Advanced Terrain Scan Processor Advanced Particle Charger Improved Medium Armor Plating Damper Plating Hacking Suite Relay Coupler [NC] Relay Coupler [NC] Long-range Tractor Beam Advanced EMP Blaster Advanced EMP Blaster Remote Datajack Plasma Cutter Power Maul [Rating: 68] Favorites ----------- Power Deuterium Engine Engine Deuterium Engine Power Core Light Nuclear Core Reactor Antimatter Reactor Propulsion Light Treads Treads Light Treads Wheel Compact Wheel Utility High-capacity Storage Unit Device Transmission Jammer Storage High-capacity Storage Unit Processor Armor Integrity Analyzer Hackware Relay Coupler [Hunter] Protection Layered Light Armor Plating Weapon Autogun Energy Gun Shock Rifle Ballistic Gun Autogun Ballistic Cannon Assault Cannon Launcher Advanced EMP Blaster Special Weapon Remote Datajack Impact Weapon Power Maul Slashing Weapon Ripper Build | -11 -10 -10 -10 -9 -8 -8 -8 -8 -7 -7 -7 -7 -7 ------- Run | Scr Mat Min Exi Min Mat Gar Mat Gar Fac Was Fac Low Low Slots Evolved 6 | . . . . . 4 . . . 2 . . . . Power . | . . . . . . . . . . . . . . Propulsion . | . . . . . . . . . . . . . . Utility 6 | . . . . . 4 . . . 2 . . . . Weapon . | . . . . . . . . . . . . . . Parts Attached 153 | 7 8 4 3 4 43 19 5 5 9 17 11 13 5 Power 14 | 1 1 1 . 1 3 1 1 . 1 1 . 3 . Engine 10 | 1 1 1 . 1 2 1 1 . 1 . . 1 . Core 1 | . . . . . 1 . . . . . . . . Reactor 3 | . . . . . . . . . . 1 . 2 . Propulsion 21 | 2 . 3 . 1 5 3 1 2 1 2 . . 1 Treads 19 | 1 . 2 . 1 5 3 1 2 1 2 . . 1 Leg . | . . . . . . . . . . . . . . Wheel 2 | 1 . 1 . . . . . . . . . . . Hover . | . . . . . . . . . . . . . . Flight . | . . . . . . . . . . . . . . Utility 43 | 2 2 . . . 17 3 1 1 4 3 5 4 1 Device 10 | . . . . . 4 . . . 1 . 2 3 . Storage 10 | 2 2 . . . 4 1 . . . 1 . . . Processor 1 | . . . . . . . . . 1 . . . . Hackware 3 | . . . . . . . . . . 1 2 . . Protection 19 | . . . . . 9 2 1 1 2 1 1 1 1 Artifact . | . . . . . . . . . . . . . . Weapon 75 | 2 5 . 3 2 18 12 2 2 3 11 6 6 3 Energy Gun 2 | . . . . . . . . . . . . 1 1 Energy Cannon . | . . . . . . . . . . . . . . Ballistic Gun 43 | 2 5 . 2 1 10 8 1 1 2 5 4 1 1 Ballistic Cannon 1 | . . . . . 1 . . . . . . . . Launcher 16 | . . . 1 1 7 2 1 . . . 1 3 . Special Weapon 7 | . . . . . . . . . 1 5 1 . . Impact Weapon 3 | . . . . . . . . . . 1 . 1 1 Slashing Weapon 3 | . . . . . . 2 . 1 . . . . . Piercing Weapon . | . . . . . . . . . . . . . . Special Melee Weapon . | . . . . . . . . . . . . . . Unidentified Prototypes 3 | . . . . . . 2 . . . . 1 . . Parts Lost 28 | . 2 1 . 1 14 2 . . 1 2 1 2 2 Power 6 | . 1 . . 1 2 1 . . . . . 1 . Propulsion 5 | . 1 1 . . 3 . . . . . . . . Utility 10 | . . . . . 5 . . . 1 2 . 1 1 Weapon 7 | . . . . . 4 1 . . . . 1 . 1 Highest Loss Streak 4 | . 2 1 . 1 4 1 . . 1 2 1 2 1 Average Slot Usage (%) 89 | . 92 99 74 97 95 100 100 100 99 83 75 74 71 Engine 8 | . 14 14 14 11 7 9 9 9 7 3 . 3 7 Reactor 1 | . . . . . . . . . . 3 7 3 . Treads 16 | . 14 26 28 28 17 18 18 18 15 9 7 7 7 Device 3 | . . . . . 5 . . . 7 2 . 13 9 Storage 26 | . 28 28 28 28 28 36 36 30 23 23 23 23 23 Processor 1 | . . . . . . . . . . 7 5 . . Hackware 1 | . . . . . . . . . . 6 7 . . Protection 10 | . . . . . 17 18 18 23 29 9 6 7 7 Ballistic Gun 16 | . 28 28 1 27 17 16 17 15 14 10 15 6 10 Naked Turns . | . . . . . . . . . . . . . . Heaviest Build 169 | 14 43 43 41 43 109 120 120 121 126 164 166 169 167 Greatest Support 70 | 20 20 40 40 40 42 40 40 40 40 70 70 70 70 Greatest Overweight (x) 5 | . 2 2 1 1 2 2 2 3 3 5 2 2 2 Average Overweight (x) 1 | . . 1 . . 1 2 2 2 3 2 1 2 2 Largest Inventory Capacity 28 | 8 16 16 16 16 26 28 28 28 28 28 28 28 28 Average Capacity 23 | 7 12 16 16 16 23 27 28 28 28 27 28 28 28 Most Carried 28 | 8 16 16 16 16 26 28 28 28 28 28 28 28 28 Average Carried 22 | 4 11 15 15 15 22 27 27 27 27 26 27 25 27 Final Capacity 28 | 8 16 16 16 16 26 28 28 28 28 28 28 28 28 Final Carried 28 | 8 16 16 14 16 26 28 28 28 28 28 28 28 26 Class Distribution -------------------- 55% | Hauler-Mutant 33% | Mutant 11% | Bothacker-Mutant Dominant Class ---------------- Mutant | -10/Materials Mutant | -10/Mines Mutant | -10/Exiles Mutant | -9/Mines Hauler-Mutant | -8/Materials Hauler-Mutant | -8/Garrison Hauler-Mutant | -8/Materials Hauler-Mutant | -8/Garrison Hauler-Mutant | -7/Factory Bothacker-Mutant | -7/Waste Hauler-Mutant | -7/Factory Hauler-Mutant | -7/Lower Caves Hauler-Mutant | -7/Lower Caves Resources | -11 -10 -10 -10 -9 -8 -8 -8 -8 -7 -7 -7 -7 -7 ----------- Run | Scr Mat Min Exi Min Mat Gar Mat Gar Fac Was Fac Low Low Matter Collected 6018 | 300 548 234 . 219 1277 626 112 207 434 913 596 381 171 Remotely 527 | . . . . . 527 . . . . . . . . Salvage Created 7822 | 108 658 111 . 238 2139 456 242 207 457 1635 696 546 329 Parts 376 | 10 33 9 . 12 122 37 21 16 27 24 36 19 10 Haulers Intercepted 8 | . 2 . . . 2 . 1 . 1 . 2 . . Recyclers Shooed 4 | . . . . 1 1 . . . 1 . 1 . . Parts Field Recycled . | . . . . . . . . . . . . . . Retrieved Matter . | . . . . . . . . . . . . . . Parts Self-Destructed 15 | . . . . . . . . . . . . 5 10 Prevented 11 | . . . . . . . . . . . . 11 . Kills | -11 -10 -10 -10 -9 -8 -8 -8 -8 -7 -7 -7 -7 -7 ------- Run | Scr Mat Min Exi Min Mat Gar Mat Gar Fac Was Fac Low Low Combat Hostiles Destroyed 144 | . 13 10 . 8 48 16 6 6 7 6 9 9 6 Guns 98 | . 13 10 . 5 24 9 3 6 7 6 9 . 6 Cannons 2 | . . . . . . 2 . . . . . . . AOE 41 | . . . . 3 24 5 3 . . . . 6 . Classes Destroyed 18 | 2 4 2 . 1 5 1 . . 1 1 . 1 . Worker 8 | . 2 . . . 6 . . . . . . . . Builder 5 | . . . . . 4 . 1 . . . . . . Tunneler 5 | 3 1 . . . . . . . . . 1 . . Hauler 8 | . 2 . . . 2 . 1 . 1 . 2 . . Recycler 8 | 1 . . . . 4 . . . 2 . 1 . . Operator 1 | . . . . . 1 . . . . . . . . Watcher 3 | . . . . . 2 . . . 1 . . . . Swarmer 41 | . 3 6 . 3 11 7 3 3 4 . . 1 . Grunt 62 | . 10 . . 4 27 6 . . 1 . 5 3 6 Brawler 2 | . . . . 1 . . . 1 . . . . . Duelist 3 | . . . . . 1 . . 1 . . . 1 . Sentry 18 | . . . . . 9 2 3 1 . . 2 1 . Demolisher 2 | . . 2 . . . . . . . . . . . Hunter 3 | . . . . . . 1 . . . . . 2 . Programmer 5 | . . . . . . . . . 2 . 2 1 . Compactor 6 | . . . . . . . . . . 6 . . . Tinkerer 1 | . . . . . . . . . . . . 1 . Assembled 2 | . . 2 . . . . . . . . . . . Best Kill Streak 17 | 1 5 3 . 3 17 5 5 3 3 1 3 4 4 Combat Bots Only 13 | . 4 3 . 3 13 5 3 3 3 1 3 4 4 Max Kills in Single Turn 5 | 1 2 1 . 2 5 3 3 1 1 1 1 2 1 Gunslinging . | . . . . . . . . . . . . . . Exploded 4 | . . . . 2 4 3 3 . . . . 2 . Melee . | . . . . . . . . . . . . . . Uniques/NPCs Destroyed . | . . . . . . . . . . . . . . Combat | -11 -10 -10 -10 -9 -8 -8 -8 -8 -7 -7 -7 -7 -7 -------- Run | Scr Mat Min Exi Min Mat Gar Mat Gar Fac Was Fac Low Low Damage Taken 9271 | . 546 380 . 195 2394 918 298 157 707 82 817 1507 1270 Core 1368 | . 115 58 . 28 332 75 24 25 83 35 96 89 408 Absorbed by Shields 11 | . . . . . . . . 11 . . . . . Core Remaining (%) 45 | 100 . . . 19 . . . 17 . . . . . Volleys Fired 507 | 14 49 20 1 16 137 47 23 14 25 71 42 27 21 Largest 2 | 2 2 2 1 2 2 2 2 2 2 2 2 2 2 Hottest 78 | 40 46 46 33 46 59 67 50 53 53 51 56 64 78 Shots Fired 950 | 28 98 40 1 27 257 91 43 28 47 128 79 44 39 Gun 875 | 28 98 40 . 22 237 72 40 28 45 121 77 28 39 Cannon 15 | . . . . . . 15 . . . . . . . Launcher 49 | . . . 1 5 20 4 3 . . . . 16 . Special 11 | . . . . . . . . . 2 7 2 . . Kinetic 877 | 28 98 40 . 22 237 87 40 28 45 121 77 26 28 Thermal . | . . . . . . . . . . . . . . Explosive 33 | . . . 1 5 20 4 3 . . . . . . Electromagnetic 29 | . . . . . . . . . . . . 18 11 Robot Hit Streak 20 | 3 11 4 . 7 18 20 9 9 10 16 13 6 7 Robot Miss Streak 6 | 2 3 3 . 3 3 3 2 4 3 3 5 5 6 Penetration Max 1 | . . . . . . . . . . . 1 . . Secondary Targets 8 | . . 3 . . 2 1 . . . . . . 2 Max Gunslinging Chain 1 | . . 1 . . 1 1 . . . . . . 1 Shots Hit Robots 674 | 16 62 19 . 17 180 64 30 15 32 104 65 33 37 Core Hits 409 | 7 29 13 . 10 121 29 13 11 20 49 45 23 39 Critical Hits 7 | . . . . 1 3 1 . . . 1 1 . . Critical Kills 3 | . . . . . 2 1 . . . . . . . Critical Parts Destroyed 3 | . . . . 1 1 . . . . . 1 . . Melee Attacks 13 | . . . . . . 2 . 1 . 3 . 3 4 Impact 10 | . . . . . . . . . . 3 . 3 4 Slashing 3 | . . . . . . 2 . 1 . . . . . Piercing . | . . . . . . . . . . . . . . Sneak Attacks 3 | . . . . . . . . . . . . 3 . Combat Hostiles . | . . . . . . . . . . . . . . Follow-up Attacks . | . . . . . . . . . . . . . . Damage Inflicted 15754 | 206 776 281 . 529 5488 1378 742 320 549 2182 1319 1304 680 Guns 10786 | 206 776 281 . 219 2677 773 492 320 549 2182 1237 467 607 Cannons 135 | . . . . . . 135 . . . . . . . Explosions 4511 | . . . . 310 2811 470 250 . . . 82 588 . Melee 322 | . . . . . . . . . . . . 249 73 Ramming . | . . . . . . . . . . . . . . Kinetic 10830 | 206 776 281 . 219 2677 908 492 320 549 2182 1237 447 536 Thermal 82 | . . . . . . . . . . . 82 . . Explosive 3841 | . . . . 310 2811 470 250 . . . . . . Electromagnetic 679 | . . . . . . . . . . . . 608 71 Impact 322 | . . . . . . . . . . . . 249 73 Slashing . | . . . . . . . . . . . . . . Piercing . | . . . . . . . . . . . . . . Highest Corruption 41 | . . 2 2 2 . . . . 1 40 41 39 33 Average Corruption 21 | . . 2 2 2 . . . . 1 32 40 35 32 Corruption Purged 9 | . . . . . . . . . . . 2 6 1 Effects 417 | . . 6 10 16 . . . . 2 118 137 98 30 Message Errors 63 | . . 2 4 6 . . . . 1 9 21 15 5 Matter Fused 48 | . . . . . . . . . . 14 15 14 5 Heat Flow Errors 27 | . . 1 3 . . . . . . 12 9 2 . Energy Discharges 26 | . . 1 1 2 . . . . . 8 3 11 . Parts Rejected 1 | . . . . . . . . . . . 1 . . Data Loss (minor) 36 | . . 2 2 6 . . . . . 5 13 7 1 Data Loss (major) 15 | . . . . . . . . . . 2 5 5 3 Misfires 11 | . . . . . . . . . . 3 4 4 . Alerts 4 | . . . . . . . . . . . . 4 . Misdirections 61 | . . . . . . . . . . 20 22 17 2 Targeting Errors 114 | . . . . 2 . . . . . 44 37 19 12 Weapon Failures 11 | . . . . . . . . . 1 1 7 . 2 Overload Shots . | . . . . . . . . . . . . . . Overflow Damage 287 | . . . . 43 77 30 . . . . 42 95 . Projectiles . | . . . . . . . . . . . . . . Explosions 207 | . . . . 43 77 30 . . . . 42 15 . Melee 80 | . . . . . . . . . . . . 80 . Knockbacks 3 | . . . . . . 1 . . . . . 2 . Impact 2 | . . . . . . . . . . . . 2 . Kinetic 1 | . . . . . . 1 . . . . . . . Secondary . | . . . . . . . . . . . . . . Self-Inflicted Damage 198 | . . . . 44 31 . . . . . 68 55 . Shots 12 | . . . . 1 1 . . . . . 1 9 . Rammed . | . . . . . . . . . . . . . . Targets Rammed . | . . . . . . . . . . . . . . Kicked . | . . . . . . . . . . . . . . Crushed . | . . . . . . . . . . . . . . Highest Temperature 606 | . 24 151 170 38 114 169 88 65 87 374 364 348 606 Average Temperature 95 | . 6 18 81 17 38 46 37 27 29 90 126 127 267 Received Heat Transfer 3141 | . 270 . . 66 1098 369 63 . 27 . 279 510 459 Effects 25 | . . . . . . . . . . 1 4 4 16 Shutdowns 2 | . . . . . . . . . . . . . 2 Energy Bleed 4 | . . . . . . . . . . . 3 . 1 Interference 2 | . . . . . . . . . . . . . 2 Matter Decay 8 | . . . . . . . . . . 1 . 1 6 Short Circuit 6 | . . . . . . . . . . . . 3 3 Damage (minor) 1 | . . . . . . . . . . . 1 . . Damage (core) 2 | . . . . . . . . . . . . . 2 Siege Activations . | . . . . . . . . . . . . . . Robots Corrupted 3 | . . . . . . . . . . . . 3 . Combat Hostiles 3 | . . . . . . . . . . . . 3 . Parts Fried 3 | . . . . . . . . . . . . 3 . Impact Corruptions 2 | . . . . . . . . . . . . 2 . Robots Melted . | . . . . . . . . . . . . . . Combat Hostiles . | . . . . . . . . . . . . . . Parts Melted . | . . . . . . . . . . . . . . Heat Transferred 50 | . . . . . . . . . . . 50 . . Parts Sabotaged . | . . . . . . . . . . . . . . Parts Stolen . | . . . . . . . . . . . . . . Parts Stripped . | . . . . . . . . . . . . . . Power Chain Reactions 2 | . . . . . . . . . . . . 2 . Missiles Intercepted . | . . . . . . . . . . . . . . Alert | -11 -10 -10 -10 -9 -8 -8 -8 -8 -7 -7 -7 -7 -7 ------- Run | Scr Mat Min Exi Min Mat Gar Mat Gar Fac Was Fac Low Low Peak Influence 1087 | 20 195 141 . 234 960 1087 870 735 497 75 182 . . Initial 624 | . 13 31 . . 32 624 529 565 385 45 2 . . Average 228 | 9 93 47 . 77 192 870 759 672 257 21 78 . . Maximum Alert Level 3 | . . . . 1 3 3 3 3 2 . . . . Low Security (%) 71 | 100 100 100 . 97 70 . . . 45 100 100 . . Level 1 8 | . . . . 2 13 . . . 48 . . . . Level 2 5 | . . . . . 9 6 20 61 6 . . . . Level 3 13 | . . . . . 5 93 79 38 . . . . . Level 4 . | . . . . . . . . . . . . . . Level 5 . | . . . . . . . . . . . . . . High Security . | . . . . . . . . . . . . . . Max Security . | . . . . . . . . . . . . . . Squads Dispatched 20 | . 4 . . . 9 . 2 . 2 . 3 . . Investigation 4 | . 2 . . . 2 . . . . . . . . Extermination 4 | . . . . . . . . . 2 . 2 . . Reinforcement 10 | . 2 . . . 6 . 1 . . . 1 . . Assault . | . . . . . . . . . . . . . . Garrison 2 | . . . . . 1 . 1 . . . . . . Intercept . | . . . . . . . . . . . . . . Construction Impeded 1 | . . . . . 1 . . . . . . . . Haulers Reinforced 1 | . . . . . . . . . . . 1 . . Stealth | -11 -10 -10 -10 -9 -8 -8 -8 -8 -7 -7 -7 -7 -7 --------- Run | Scr Mat Min Exi Min Mat Gar Mat Gar Fac Was Fac Low Low Distress Signals 6 | . . . . . 6 . . . . . . . . Communications Jammed . | . . . . . . . . . . . . . . Distress Signals . | . . . . . . . . . . . . . . Times Spotted 183 | . 17 12 . 12 66 17 9 6 9 5 11 11 8 Peak Tracking Total 9 | . 3 3 9 4 8 4 3 2 5 2 3 4 4 Tactical Retreats 12 | . . 1 . 1 5 2 . . 1 . . 2 . Traps | -11 -10 -10 -10 -9 -8 -8 -8 -8 -7 -7 -7 -7 -7 ------- Run | Scr Mat Min Exi Min Mat Gar Mat Gar Fac Was Fac Low Low Traps Triggered 6 | . . . . . 1 . . 2 1 . 2 . . Indirectly . | . . . . . . . . . . . . . . Trap Hack Attempts . | . . . . . . . . . . . . . . Triggered . | . . . . . . . . . . . . . . Disarmed . | . . . . . . . . . . . . . . Reprogrammed . | . . . . . . . . . . . . . . Reused . | . . . . . . . . . . . . . . Traps Extracted . | . . . . . . . . . . . . . . Installed . | . . . . . . . . . . . . . . Triggered . | . . . . . . . . . . . . . . Machines | -11 -10 -10 -10 -9 -8 -8 -8 -8 -7 -7 -7 -7 -7 ---------- Run | Scr Mat Min Exi Min Mat Gar Mat Gar Fac Was Fac Low Low Machines Disabled 20 | . . . 1 . 7 2 4 1 . . 4 1 . Max in Single Turn 3 | . . . 1 . 3 1 2 1 . . 3 1 . Garrison Access 1 | . . . . . . . . . 1 . . . . Garrison Relay 3 | . . . . . . 2 . 1 . . . . . Machines Sabotaged . | . . . . . . . . . . . . . . Garrisons Compromised . | . . . . . . . . . . . . . . Overloaded Fab Kills . | . . . . . . . . . . . . . . Fab Network Shutdowns . | . . . . . . . . . . . . . . Hacking | -11 -10 -10 -10 -9 -8 -8 -8 -8 -7 -7 -7 -7 -7 --------- Run | Scr Mat Min Exi Min Mat Gar Mat Gar Fac Was Fac Low Low Machines Accessed 31 | . 9 . 2 1 6 . 2 . 5 . 5 1 . Terminals 18 | . 7 . . 1 4 . 1 . 3 . 2 . . Fabricators 2 | . . . . . . . . . 1 . 1 . . Repair Stations . | . . . . . . . . . . . . . . Recycling Units 4 | . 2 . . . 1 . . . . . 1 . . Scanalyzers 1 | . . . . . . . . . . . 1 . . Garrison Access 3 | . . . . . 1 . 1 . 1 . . . . Total Hacks 84 | . 19 . 24 2 17 . 2 . 9 . 10 1 . Successful 54 | . 7 . 24 2 8 . 1 . 5 . 6 1 . Failed 30 | . 12 . . . 9 . 1 . 4 . 4 . . Catastrophic 9 | . 6 . . . 1 . . . 2 . . . . Database Lockouts . | . . . . . . . . . . . . . . Manual 26 | . 14 . 1 1 5 . . . 4 . 1 . . Terminals 43 | . 17 . . 2 15 . 1 . 5 . 3 . . Fabricators 4 | . . . . . . . . . 2 . 2 . . Repair Stations . | . . . . . . . . . . . . . . Recycling Units 5 | . 2 . . . 1 . . . . . 2 . . Scanalyzers 3 | . . . . . . . . . . . 3 . . Garrison Access 4 | . . . . . 1 . 1 . 2 . . . . Terminal Hacks 41 | . 5 . 24 2 6 . . . 2 . 1 1 . Record 23 | . . . 23 . . . . . . . . . . Part Schematic 4 | . 2 . . 1 . . . . . . 1 . . Prototype ID Bank 2 | . . . . . 1 . . . 1 . . . . Open Door 1 | . . . . . . . . . . . . 1 . Branch Access Points 2 | . . . . . 1 . . . 1 . . . . Unreport Threat 2 | . . . . . 2 . . . . . . . . Locate Traps 3 | . 2 . . . 1 . . . . . . . . Hauler Manifests 2 | . 1 . . . 1 . . . . . . . . Zone Layout 1 | . . . . 1 . . . . . . . . . EX-Prototype ID Bank 1 | . . . 1 . . . . . . . . . . Fabricator Hacks 3 | . . . . . . . . . 1 . 2 . . Load Schematic 2 | . . . . . . . . . 1 . 1 . . Build 1 | . . . . . . . . . . . 1 . . Repair Station Hacks . | . . . . . . . . . . . . . . Recycling Unit Hacks 1 | . . . . . . . . . . . 1 . . Report Inventory 1 | . . . . . . . . . . . 1 . . Scanalyzer 2 | . . . . . . . . . . . 2 . . Insert Component 1 | . . . . . . . . . . . 1 . . Analyze 1 | . . . . . . . . . . . 1 . . Garrison Access Hacks 4 | . . . . . 1 . 1 . 2 . . . . Unlock Access 2 | . . . . . 1 . 1 . . . . . . Seal Access 1 | . . . . . . . . . 1 . . . . Coupler Status 1 | . . . . . . . . . 1 . . . . Unauthorized Hacks 3 | . 2 . . . 1 . . . . . . . . Terminals . | . . . . . . . . . . . . . . Fabricators . | . . . . . . . . . . . . . . Repair Stations . | . . . . . . . . . . . . . . Recycling Units 3 | . 2 . . . 1 . . . . . . . . Tunnel 3 | . 2 . . . 1 . . . . . . . . Scanalyzers . | . . . . . . . . . . . . . . Garrison Access . | . . . . . . . . . . . . . . Data Cores Recovered . | . . . . . . . . . . . . . . Used . | . . . . . . . . . . . . . . Hacking Detections 24 | . 7 . . 1 5 . 1 . 5 . 5 . . Full Trace Events 2 | . 1 . . . 1 . . . . . . . . Feedback Events . | . . . . . . . . . . . . . . Feedback Blocked . | . . . . . . . . . . . . . . Robot Schematics Acquired . | . . . . . . . . . . . . . . Robots Built . | . . . . . . . . . . . . . . Matter . | . . . . . . . . . . . . . . Time . | . . . . . . . . . . . . . . Total Robot Build Rating . | . . . . . . . . . . . . . . Part Schematics Acquired 5 | . 2 . . 1 . . . . . . 2 . . Parts Built 2 | . . . . . . . . . . . 2 . . Matter 168 | . . . . . . . . . . . 168 . . Time 42 | . . . . . . . . . . . 42 . . Total Part Build Rating 8 | . . . . . . . . . . . 8 . . Parts Repaired . | . . . . . . . . . . . . . . Time . | . . . . . . . . . . . . . . Parts Recycled . | . . . . . . . . . . . . . . Recycled Matter . | . . . . . . . . . . . . . . Retrieved Matter . | . . . . . . . . . . . . . . Retrieved Components . | . . . . . . . . . . . . . . Parts Scanalyzed 1 | . . . . . . . . . . . 1 . . Part Schematics Acquired 1 | . . . . . . . . . . . 1 . . Parts Damaged . | . . . . . . . . . . . . . . Bothacking | -11 -10 -10 -10 -9 -8 -8 -8 -8 -7 -7 -7 -7 -7 ------------ Run | Scr Mat Min Exi Min Mat Gar Mat Gar Fac Was Fac Low Low Used RIF Installer 2 | . . . . . . 1 . 1 . . . . . Command Fork 1 | . . . . . . . . 1 . . . . . Robots Hacked 9 | . . . . . . . . . 2 6 1 . . Non-combat 2 | . . . . . . . . . 1 . 1 . . Combat 7 | . . . . . . . . . 1 6 . . . Robot Hacks Applied 9 | . . . . . . . . . 2 6 1 . . parse_system 1 | . . . . . . . . . 1 . . . . find_chute 1 | . . . . . . . . . 1 . . . . ignore_targets 6 | . . . . . . . . . . 6 . . . link_fov 1 | . . . . . . . . . . . 1 . . Relay Couplers Released 11 | . . . . . . 8 . 3 . . . . . Machine Destruction 11 | . . . . . . 8 . 3 . . . . . Attached 2 | . . . . . . . . . . 1 1 . . Robots Rewired . | . . . . . . . . . . . . . . Allies Hacked . | . . . . . . . . . . . . . . Hacks Repelled . | . . . . . . . . . . . . . . Allies | -11 -10 -10 -10 -9 -8 -8 -8 -8 -7 -7 -7 -7 -7 -------- Run | Scr Mat Min Exi Min Mat Gar Mat Gar Fac Was Fac Low Low Total Allies 4 | . . 1 . 3 . . . . . . . . . Largest Group 3 | . . 1 1 3 . . . . . . . . . Highest-Rated Group 40 | . . 31 31 40 . . . . . . . . . Highest-Rated Ally 31 | . . 31 31 16 . . . . . . . . . Total Orders . | . . . . . . . . . . . . . . Ally Attacks 34 | . . 1 . 33 . . . . . . . . . Total Damage 364 | . . 21 . 343 . . . . . . . . . Kills 8 | . . 1 . 7 . . . . . . . . . Allies Corrupted . | . . . . . . . . . . . . . . Allies Melted . | . . . . . . . . . . . . . . Intel | -11 -10 -10 -10 -9 -8 -8 -8 -8 -7 -7 -7 -7 -7 ------- Run | Scr Mat Min Exi Min Mat Gar Mat Gar Fac Was Fac Low Low Robot Analysis Total . | . . . . . . . . . . . . . . Derelict Logs Recovered 6 | . . 3 . 2 . . . . . . . 1 . Drone Launches . | . . . . . . . . . . . . . . Drone Recoveries . | . . . . . . . . . . . . . . Exploration | -11 -10 -10 -10 -9 -8 -8 -8 -8 -7 -7 -7 -7 -7 ------------- Run | Scr Mat Min Exi Min Mat Gar Mat Gar Fac Was Fac Low Low Turns Passed 13456 | 148 1254 975 925 1179 1821 1054 317 379 1479 1118 1361 1199 247 Spaces Moved 6257 | 91 763 532 571 621 717 439 127 161 625 421 569 544 76 Core 2 | 2 . . . . . . . . . . . . . Treads 5606 | 1 283 451 571 621 717 439 127 161 625 421 569 544 76 Legs . | . . . . . . . . . . . . . . Wheels 649 | 88 480 81 . . . . . . . . . . . Hover . | . . . . . . . . . . . . . . Flight . | . . . . . . . . . . . . . . Fastest Speed 50 | 50 100 120 160 160 172 200 200 200 220 200 180 200 200 Average Speed 184 | 99 138 170 160 177 188 200 200 207 220 210 199 200 200 Slowest Speed 260 | 160 200 200 180 180 200 200 200 220 220 260 200 200 200 Overloaded Moves . | . . . . . . . . . . . . . . Propulsion Burnouts . | . . . . . . . . . . . . . . Robots Hopped . | . . . . . . . . . . . . . . Cave-ins Triggered . | . . . . . . . . . . . . . . Exploration Rate (%) 53 | 5 97 97 72 98 64 44 21 34 19 99 16 66 18 Regions Visited 13 Branch Regions 5 Pre-discovered Areas 6 | . 2 1 1 1 1 . . . . . . . . Known Exits Taken 3 | . . . . . 1 . 1 . . . 1 . . Unknown Exits Taken 6 | 1 1 1 1 1 . . . . . . . 1 . Scrap Searched 4 | . . 3 . 1 . . . . . . . . . Spaces Dug 46 | . . . . . 14 . 29 . . 3 . . . Terrain Destroyed 325 | . . . 7 58 135 32 70 . . 3 4 16 . Melee 3 | . . . . . . . . . . 3 . . . Projectile 1 | . . . . . . . . . . . . 1 . AOE 321 | . . . 7 58 135 32 70 . . . 4 15 . Terrain Rammed . | . . . . . . . . . . . . . . Walls Destroyed . | . . . . . . . . . . . . . . Machines Disabled . | . . . . . . . . . . . . . . Actions | -11 -10 -10 -10 -9 -8 -8 -8 -8 -7 -7 -7 -7 -7 --------- Run | Scr Mat Min Exi Min Mat Gar Mat Gar Fac Was Fac Low Low Total 7353 | 119 872 567 578 681 972 535 165 187 693 534 714 611 125 Wait 224 | . 35 5 . 31 22 1 3 1 23 . 77 10 16 Move 6243 | 90 762 531 570 620 716 437 126 159 625 420 568 543 76 Hop . | . . . . . . . . . . . . . . Pick Up 122 | 8 10 4 . 6 38 16 3 1 6 12 8 9 1 Fast Attach 16 | 7 1 . . . 2 . . . 1 2 3 . . Attach 44 | . 1 2 2 1 17 2 . . 3 4 3 7 2 Detach 4 | . . . 2 . . . . . . 1 . 1 . Swap 93 | . 6 2 1 3 24 17 5 5 5 11 5 6 3 Drop 84 | . 8 3 2 4 16 13 5 3 5 10 8 5 2 Fire 507 | 14 49 20 1 16 137 47 23 14 25 71 42 27 21 Melee 13 | . . . . . . 2 . 1 . 3 . 3 4 Ram . | . . . . . . . . . . . . . . Kick . | . . . . . . . . . . . . . . Crush . | . . . . . . . . . . . . . . Escape Stasis 3 | . . . . . . . . 3 . . . . . Rewire . | . . . . . . . . . . . . . . Trap . | . . . . . . . . . . . . . . Miscellaneous . | . . . . . . . . . . . . . . Route ------- -11/Scrapyard -10/Materials (discovered 4 exits: [*Mat x3] / [*Min]) -10/Mines (discovered 3 exits: [*Mat x2] / *Exi) -10/Exiles (discovered 2 exits: *Min x2) -9/Mines (discovered 2 exits: *Mat x2) -8/Materials (discovered 3 exits: *Fac x2 / Gar) -8/Garrison -8/Materials -8/Garrison -7/Factory (discovered 3 exits: Sto / *Low x2) -7/Waste -7/Factory -7/Lower Caves -7/Lower Caves (discovered 1 exit: [*Fac]) History --------- Turn | Location | Event 42 | -11/Scrapyard | Discovered new exit (range 13) 149 | -11/Scrapyard | Entered Materials 308 | -10/Materials | Build established: Mutant 382 | -10/Materials | Discovered new exit (range 6) 574 | -10/Materials | Discovered new exit (range 9) 725 | -10/Materials | Discovered new exit (range 12) 1220 | -10/Materials | Discovered new exit (range 13) 1403 | -10/Materials | Entered Mines 1410 | -10/Mines | Received a Rocket Launcher from a helpful Derelict 1500 | -10/Mines | A weapon hastily lodged in a ceiling crevice suddenly fell to the ground 1509 | -10/Mines | Core integrity fell below 50% 1588 | -10/Mines | Assembled infested the area 1643 | -10/Mines | Deemed a non-threat by the Exiles lab entrance 1643 | -10/Mines | Discovered new exit (range 5) 1809 | -10/Mines | Discovered new exit (range 10) 1859 | -10/Mines | Discovered new exit (range 11) 1865 | -10/Mines | Learned Materials stockpile data 2124 | -10/Mines | Learned 2 Materials zone layouts 2179 | -10/Mines | Escorted by a lone wolf Derelict 2203 | -10/Mines | Learned location of Storage (-7) 2378 | -10/Mines | Entered Exiles 2378 | -10/Exiles | Accompanied by 1 ally 2425 | -10/Exiles | Met 8R-AWN 2456 | -10/Exiles | Met EX-HEX 2534 | -10/Exiles | Met EX-DEC 2654 | -10/Exiles | Learned location of Zion (-6) 2698 | -10/Exiles | Met EX-BIN 2832 | -10/Exiles | Discovered new exit (range 14) 3034 | -10/Exiles | Aligned with FarCom system 3035 | -10/Exiles | Given EX-Vault access code 3074 | -10/Exiles | Opened EX-Vault 3109 | -10/Exiles | Warned to stay clear of 0b10 Research branches 3243 | -10/Exiles | Discovered new exit (range 14) 3272 | -10/Exiles | Attacked by the Exiles 3303 | -10/Exiles | Entered Mines 3311 | -9/Mines | Assisted by bots powering up and referring to "LRC-V3" 3529 | -9/Mines | Learned Materials emergency access door positions 3658 | -9/Mines | Discovered new exit (range 8) 3728 | -9/Mines | Discovered new exit (range 8) 4050 | -9/Mines | Found a damaged Exp. Sensor Array with a note attached 4073 | -9/Mines | Core integrity fell below 20% 4093 | -9/Mines | Found Prototype Device 4482 | -9/Mines | Entered Materials 4482 | -8/Materials | Evolved 4 slots: Utility x4 4837 | -8/Materials | Build established: Hauler-Mutant 5159 | -8/Materials | Discovered new exit (range 4) 5798 | -8/Materials | Lost 3 parts (1n2u) 6042 | -8/Materials | Discovered new exit (range 15) 6049 | -8/Materials | Destroyed 9 combat bots 6123 | -8/Materials | Garrison activated, responded to threat 6197 | -8/Materials | Core integrity fell below 50% 6238 | -8/Materials | Destroyed 13 combat bots 6247 | -8/Materials | Lost 4 parts (2n1u1w) 6301 | -8/Materials | Identified exit to Garrison 6303 | -8/Materials | Entered Garrison 6313 | -8/Garrison | Installed Relay Interface Framework 6713 | -8/Garrison | Triggered checkpoint 6762 | -8/Garrison | Spotted B-75 Beast 6886 | -8/Garrison | Garrison Relay disabled 7020 | -8/Garrison | Triggered checkpoint 7074 | -8/Garrison | Discovered new exit (range 15) 7130 | -8/Garrison | Triggered checkpoint 7272 | -8/Garrison | Garrison Relay disabled 7357 | -8/Garrison | Entered Materials 7625 | -8/Materials | Garrison activated, responded to threat 7672 | -8/Materials | Identified exit to Garrison 7674 | -8/Materials | Entered Garrison 7774 | -8/Garrison | Triggered checkpoint 7817 | -8/Garrison | Garrison Relay disabled 7904 | -8/Garrison | Triggered checkpoint 7914 | -8/Garrison | Core integrity fell below 20% 8011 | -8/Garrison | Discovered new exit (range 10) 8042 | -8/Garrison | Expanded RIF knowledge: Command Fork 8053 | -8/Garrison | Entered Factory 8053 | -7/Factory | Evolved 2 slots: Utility x2 8054 | -7/Factory | Identified exit to Storage 9088 | -7/Factory | Discovered new exit (range 15) 9265 | -7/Factory | Identified exit to Lower Caves 9510 | -7/Factory | Build established: Bothacker-Mutant 9532 | -7/Factory | Sucked down chute 9532 | -7/Factory | Entered Waste 9547 | -7/Waste | EMP discharged 9547 | -7/Waste | System corruption reached 10% 9621 | -7/Waste | Spotted C-40 Crusher 9647 | -7/Waste | EMP discharged 9654 | -7/Waste | Spotted C-40 Crusher 9674 | -7/Waste | Spotted C-40 Crusher 9734 | -7/Waste | Spotted C-40 Crusher 9747 | -7/Waste | EMP discharged 9777 | -7/Waste | Spotted C-40 Crusher 9779 | -7/Waste | Spotted C-40 Crusher 9792 | -7/Waste | Crushed by Compactor (1 part destroyed, 1 dropped) 9795 | -7/Waste | Crushed by Compactor (1 part destroyed, 1 dropped) 9847 | -7/Waste | EMP discharged 9847 | -7/Waste | System corruption reached 30% 9931 | -7/Waste | Destroyed C-40 Crusher 9947 | -7/Waste | EMP discharged 9949 | -7/Waste | Found Damper Plating 10017 | -7/Waste | Destroyed C-40 Crusher 10038 | -7/Waste | Destroyed C-40 Crusher 10047 | -7/Waste | EMP discharged 10077 | -7/Waste | Destroyed C-40 Crusher 10105 | -7/Waste | Found Damper Plating 10120 | -7/Waste | Destroyed C-40 Crusher 10147 | -7/Waste | EMP discharged 10247 | -7/Waste | EMP discharged 10308 | -7/Waste | Destroyed C-40 Crusher 10347 | -7/Waste | EMP discharged 10447 | -7/Waste | EMP discharged 10547 | -7/Waste | EMP discharged 10622 | -7/Waste | Discovered new exit (range 13) 10647 | -7/Waste | EMP discharged 10650 | -7/Waste | Entered Factory 11021 | -7/Factory | Build established: Hauler-Mutant 11125 | -7/Factory | Discovered exit to Lower Caves (range 12) 11233 | -7/Factory | Identified Exp. Sensor Array 11927 | -7/Factory | Fabricated System Backup Module (x2) 12011 | -7/Factory | Entered Lower Caves 12284 | -7/Lower Caves | Learned 12 Factory zone layouts 12464 | -7/Lower Caves | Attracted the attention of an 0b10 checkpoint 12634 | -7/Lower Caves | Found Prototype Device 13194 | -7/Lower Caves | Discovered new exit (range 6) 13210 | -7/Lower Caves | Entered another Lower Caves area 13246 | -7/Lower Caves | Discovered new exit (range 10) 13311 | -7/Lower Caves | Core integrity fell below 50% 13446 | -7/Lower Caves | Core integrity fell below 20% 13457 | -7/Lower Caves | Destroyed by G-47 Trooper with Particle Gun Last Messages --------------- 13439_ System corrupted: Flak Gun targeting data glitched. 13440_ Overheating: Matter decay (-24). 13441_ Power failure, Imp. Deuterium Engine shutdown. 13442_ CCVFWMWO Z1D C7V0 BCVSAZGF 13442_ System corrupted: Flak Gun jammed. 13444_ Shock Rifle permanently disabled. 13444_ Overheating: Short circuit. 13445_ Overheating: Matter decay (-22). 13445_ System corrupted: Flak Gun targeting data glitched. 13446_ Overheating: Core damaged (-133). 13447_ Overheating: System interference. 13447_ Flak Gun temporarily disabled. 13447_ Particle Gun fries itself beyond repair. 13448_ Power failure, Imp. Deuterium Engine shutdown. 13448_ Overheating: Core damaged (-112). 13449_ Overheating: Matter decay (-22). 13451_ Overheating: Matter decay (-30). 13451_ System corrupted: Power Maul targeting data glitched. 13453_ Damper Plating destroyed. 13454_ Overheating: Matter decay (-19). Map ----- +----------------------------------------------------+ | ?????????????????????????????????????????????????? | | ?????????????????????????????????????????????????? | | ?????????????????????????????????????????????????? | | ?????????????????????????????????????????????????? | | ?????????????????????????????????????????????????? | | ?????????????????????????????????????????????????? | | ?????????????????????????????????????????????????? | | ?????????????????????????????????????????????????? | | ?????????????????????????????????????????????????? | | ??????????????????????????????????????????? ### ? | | ????????????????????????????????????????? # | | ????????????????????????????????????????# ? | | ????????????????????????????????????????# ? | | ????????????????????????????????????????# ? | | ????????????????????????????????????????# ? | | ????????????????????????????????????????# #? | | ????????????????????????????????????????# ## | | ?????????????????????????????##?####?????# | | ????????????????????????????? ? #?????# | | ????????????????????????????? ? #??????# | | ?????????????????????????????# ?# #???????# | | ?????????????????????????????# ?# #??####??# | | ?????????????????????????????# ## #?## ##?# | | ???????????????????????####??# # ### # #?# | | ???????????????????????# #??# ## ### | | ???????????????????????# @##?## # | | ???????????????????????## b### # ## # | | ????????????????????????## % ######## | | ?????????????????????????##g# ######## ##??????? | | ??????????????????????????######??????####???????? | | ?????????????????????????????????????????????????? | | ?????????????????????????????????????????????????? | | ?????????????????????????????????????????????????? | | ?????????????????????????????????????????????????? | | ?????????????????????????????????????????????????? | | ?????????????????????????????????????????????????? | | ?????????????????????????????????????????????????? | | ?????????????????????????????????????????????????? | | ?????????????????????????????????????????????????? | | ?????????????????????????????????????????????????? | | ?????????????????????????????????????????????????? | | ?????????????????????????????????????????????????? | | ?????????????????????????????????????????????????? | | ?????????????????????????????????????????????????? | | ?????????????????????????????????????????????????? | | | | | | | | | | | +----------------------------------------------------+ Best States ------------- Heat Dissipation 45 Energy Generation 21 Energy Capacity 325 Matter Stores 474 Matter Capacity 500 Sight Range 16 Robot Scan Range 30 Terrain Scan Density 10 Jamming Range 8 Armor Coverage 1425 Resistance: TH 10 Resistance: EM 90 Core Shielding 20 Utility Shielding 33 Weapon Shielding 33 Evasion (%) 40 Armor Integrity Analysis 33 Recoil Reduction 2 Defensive Hacking 10 Relay Coupler Types 16 Relay Coupler Value 1 Item Schematics ----------------- Hcp. Storage Unit | -10/Materials | Hacked Lrg. Storage Unit | -10/Materials | Hacked Com. Wheel | -9/Mines | Hacked Exp. Sensor Array | -7/Factory | Scanalyzed System Backup Module | -7/Factory | Hacked Robot Schematics ------------------ None Fabricated ------------ System Backup Module | x2 | -7/Factory Alien Tech Used ----------------- None Achievements -------------- None Challenges ------------ None Game ------ Seed TargetingAssaultImmobilizer Manual? 0 Play Time 01:24:07 Cumulative 186.9 hours Start 2020.09.28 @ 09:46:20 End 2020.09.28 @ 12:58:06 Sessions 3 Manual Loads 0 Difficulty Rogue Special Mode None Game No. 211 Rogue 211 Adventurer 0 Explorer 0 Win Type - Total 2 Types 2/0/0/0/0/0/0/0/0 Lore% 61 Gallery% 74 Achievement% 56 Wizard Run 0 Options --------- ASCII 0 Keyboard 0 Movement Numpad Keybinds 0 Fullscreen 2 Font 24/Smallcaps Map View 76x50 Tactical HUD 1 Map Filters NONE Filters NONE Steam 1 RUN: 5e9dec63-c788-4107-b807-e24046d94610